bitfinex-derivatives/quotes_BTCF0:USTF0_20251219
["timestamp","ask_amount","ask_price","bid_price","bid_amount"]
[1766157871888,0.70188967,88690.0,88633.0,0.00604]
[1766157872084,0.0112821,88676.0,88634.0,0.0112873]
[1766157872285,0.00604,88678.0,88639.0,0.0112867]
[1766157872585,0.00604,88678.0,88650.0,0.00016917]
[1766157872788,0.00604,88678.0,88651.0,0.00604]
[1766157873093,0.00604,88678.0,88650.0,7e-08]
[1766157873298,0.0112827,88671.0,88650.0,7e-08]
[1766157873788,0.0112841,88661.0,88650.0,7e-08]
[1766157874293,0.0001691,88664.0,88650.0,7e-08]
[1766157874889,0.0112818,88678.0,88650.0,7e-08]
[1766157875289,0.0112821,88676.0,88650.0,7e-08]
[1766157875690,0.0112804,88689.0,88653.0,0.011285]
[1766157875992,0.0112804,88689.0,88662.0,0.00016917]
[1766157876184,0.00488,88690.0,88662.0,0.00372917]
[1766157876185,0.0161603,88690.0,88662.0,0.00372917]
[1766157876379,0.00488,88690.0,88662.0,0.00372917]
[1766157876585,0.00488,88690.0,88662.0,0.00016917]
[1766157876784,0.70676967,88690.0,88662.0,0.00016917]
[1766157876988,0.0112823,88674.0,88642.0,1.44036]
[1766157877294,0.006,88678.0,88643.0,0.12763344]
[1766157877492,0.00488,88681.0,88643.0,0.12763344]
[1766157877793,0.00348,88687.0,88643.0,0.006]
[1766157878092,0.00016917,88671.0,88653.0,0.00016917]
[1766157878294,0.00016917,88671.0,88654.0,0.0112848]
[1766157878886,0.00016917,88671.0,88659.0,0.0112841]
[1766157879087,0.0112791,88700.0,88660.0,0.006]
[1766157879289,0.00092,88699.0,88660.0,0.006]
[1766157879488,0.0112766,88719.0,88636.0,0.0631589]
[1766157879489,0.006,88698.0,88636.0,0.0631589]
[1766157879784,0.006,88698.0,88642.0,0.12829435]
[1766157879985,0.0112823,88675.0,88643.0,1.44008]
[1766157880194,0.006,88678.0,88643.0,1.44608]
[1766157880391,0.011282,88677.0,88643.0,1.44608]
[1766157880593,0.00488,88678.0,88643.0,1.44608]
[1766157880794,0.00488,88678.0,88651.0,0.0112852]
[1766157880995,0.00016917,88673.0,88656.0,0.00016917]
[1766157881298,0.70048133,88700.0,88668.0,0.011283]
[1766157881299,0.0112791,88700.0,88668.0,0.011283]
[1766157881489,0.0112795,88697.0,88669.0,0.00488]
[1766157882085,1.5,88711.0,88655.0,0.0112847]
[1766157882086,0.00488,88699.0,88655.0,0.0112847]
[1766157882291,0.0112807,88687.0,88657.0,0.0112844]
[1766157882492,0.0112815,88681.0,88658.0,0.006]
[1766157882893,0.0112812,88683.0,88658.0,0.006]
[1766157883202,0.00016917,88679.0,88662.0,0.00016917]
[1766157883402,0.0112822,88675.0,88662.0,0.00016917]
[1766157883604,0.00016917,88679.0,88636.0,0.011287]
[1766157883901,0.00016917,88679.0,88600.0,0.00099999]
[1766157883902,0.0112827,88671.0,88619.0,1.43976]
[1766157884099,0.00352,88670.0,88620.0,0.006]
[1766157884301,0.0112879,88631.0,88601.0,0.12415736]
[1766157884600,0.0112842,88660.0,88582.0,0.09123315]
[1766157884601,0.006,88632.0,88592.0,0.0112926]
[1766157884903,0.0112897,88617.0,88606.0,0.00016927]
[1766157885198,0.00016927,88624.0,88576.0,1.43972]
[1766157885199,0.006,88616.0,88576.0,1.43972]
[1766157885588,0.006,88616.0,88586.0,0.0112935]
[1766157885794,0.006,88616.0,88580.0,1.43972]
[1766157885795,0.006,88616.0,88587.0,0.00488]
[1766157885994,0.006,88616.0,88595.0,0.0112922]
[1766157886198,0.006,88616.0,88596.0,0.0112921]
[1766157886397,0.006,88616.0,88597.0,0.0054]
[1766157886603,0.006,88616.0,88594.0,0.006]
[1766157887095,0.006,88616.0,88593.0,0.00016927]
[1766157887296,0.006,88616.0,88594.0,0.00492]
[1766157888408,0.0112898,88615.0,88585.0,0.006]
[1766157888708,0.01129,88614.0,88585.0,0.006]
[1766157888898,0.006,88616.0,88567.0,0.0112958]
[1766157889099,0.006,88616.0,88592.0,0.0112926]
[1766157889301,0.00016927,88624.0,88598.0,0.0112919]
[1766157889503,0.0026,88623.0,88597.0,0.0112921]
[1766157890405,0.0112898,88616.0,88595.0,0.00016927]
[1766157890610,0.00010788,88615.0,88569.0,0.0112956]
[1766157890808,0.0112899,88614.0,88556.0,1.43996]
[1766157891000,0.0112923,88596.0,88557.0,0.0172971]
[1766157891198,0.0112931,88589.0,88555.0,0.0112973]
[1766157891401,0.00244,88588.0,88558.0,0.011297]
[1766157891599,0.0112926,88594.0,88524.0,0.0113013]
[1766157891600,0.00016937,88582.0,88564.0,0.00016937]
[1766157891800,0.00016937,88582.0,88565.0,0.0112961]
[1766157892000,0.00016937,88582.0,88564.0,0.00016937]
[1766157892400,8e-08,88587.0,88565.0,0.0112962]
[1766157892803,8e-08,88587.0,88580.0,0.0112941]
[1766157893004,8e-08,88587.0,88584.0,0.0112937]
[1766157893213,0.0112888,88624.0,88588.0,0.0112932]
[1766157893515,0.84010094,88650.0,88580.0,0.006]
[1766157893516,0.00016926,88615.0,88580.0,0.006]
[1766157893715,0.00016926,88615.0,88601.0,0.0112916]
[1766157894009,0.00016926,88615.0,88592.0,0.00256]
[1766157894511,0.00016926,88615.0,88595.0,0.00016926]
[1766157894712,0.00016926,88615.0,88598.0,0.0112918]
[1766157895705,0.00016926,88615.0,88595.0,0.00016926]
[1766157896115,0.00016926,88615.0,88583.0,0.00116]
[1766157896311,0.00016926,88615.0,88584.0,0.0112937]
[1766157896511,0.0112904,88610.0,88577.0,0.0112945]
[1766157896812,0.0112909,88607.0,88576.0,0.00536]
[1766157897012,1.44508,88614.0,88573.0,0.0112951]
[1766157897311,0.00016926,88602.0,88567.0,0.00244]
[1766157897515,0.00016926,88602.0,88551.0,0.0112979]
[1766157897516,0.0112919,88599.0,88551.0,0.0112979]
[1766157897715,0.006,88598.0,88544.0,0.00104]
[1766157897909,0.0112921,88597.0,88562.0,0.0112965]
[1766157898108,0.006,88598.0,88562.0,0.0112965]
[1766157898109,0.00016926,88588.0,88562.0,0.0112965]
[1766157898527,0.00016926,88588.0,88544.0,0.00104]
[1766157898731,0.0112934,88587.0,88557.0,0.0112971]
[1766157899235,0.00016926,88588.0,88558.0,0.011297]
[1766157899431,0.00016926,88588.0,88533.0,0.0113002]
[1766157899432,0.011295,88575.0,88520.0,0.00010062]
[1766157899632,0.00016937,88556.0,88521.0,1.44624]
[1766157899826,0.0112949,88575.0,88536.0,0.12918055]
[1766157899827,0.84010094,88570.0,88536.0,0.12918055]
[1766157900133,0.84010094,88570.0,88521.0,0.12918055]
[1766157900134,0.0113003,88534.0,88504.0,0.0113039]
[1766157900333,0.0113008,88529.0,88476.0,0.0113075]
[1766157900521,0.0113003,88533.0,88499.0,0.0113045]
[1766157900728,0.0113023,88518.0,88507.0,0.00016948]
[1766157900923,0.00484,88519.0,88494.0,0.0113051]
[1766157901138,0.0112954,88572.0,88514.0,0.0113026]
[1766157901326,0.00012409,88571.0,88508.0,0.12558552]
[1766157901636,0.0112967,88561.0,88526.0,0.0113011]
[1766157901831,0.00016948,88552.0,88519.0,0.0113019]
[1766157902037,0.00010641,88551.0,88510.0,0.00484]
[1766157902238,0.00010641,88551.0,88521.0,0.0113018]
[1766157902531,0.0112981,88550.0,88517.0,0.0113022]
[1766157902728,0.00016948,88542.0,88519.0,0.011302]
[1766157902924,0.00016948,88542.0,88509.0,0.0113032]
[1766157902925,0.00492,88541.0,88509.0,0.0113032]
[1766157903139,0.0113001,88535.0,88508.0,0.006]
[1766157903339,0.0113011,88527.0,88483.0,0.00013844]
[1766157903531,0.00016948,88514.0,88497.0,0.0113049]
[1766157903731,0.00016948,88514.0,88494.0,0.0113051]
[1766157904248,0.00016948,88514.0,88484.0,1.4416]
[1766157904249,8e-08,88514.0,88484.0,1.4416]
[1766157904535,8.65e-05,88526.0,88485.0,0.12860983]
[1766157904734,8.65e-05,88526.0,88503.0,0.0113041]
[1766157904936,8.65e-05,88526.0,88499.0,0.006]
[1766157905129,8.65e-05,88526.0,88499.0,0.00484]
[1766157905338,0.00016948,88521.0,88504.0,0.00016948]
[1766157905531,0.00016948,88521.0,88509.0,0.0113032]
[1766157905727,0.0112975,88555.0,88521.0,0.0113017]
[1766157905928,1.44084,88566.0,88511.0,0.00484]
[1766157906148,1.44084,88567.0,88522.0,0.0113017]
[1766157906328,0.0112933,88588.0,88522.0,0.0113017]
[1766157906329,0.006,88566.0,88544.0,0.0112988]
[1766157906529,0.006,88566.0,88528.0,1.44088]
[1766157906734,0.006,88566.0,88543.0,0.0112989]
[1766157907033,0.00016938,88563.0,88546.0,0.00016938]
[1766157907233,0.00016938,88563.0,88549.0,0.0112982]
[1766157907434,0.00016938,88563.0,88546.0,0.00016938]
[1766157907945,0.00016938,88563.0,88534.0,0.00184]
[1766157908242,0.00016938,88563.0,88536.0,0.0112998]
[1766157908646,0.00016938,88563.0,88530.0,0.00484]
[1766157908940,0.00016938,88563.0,88538.0,0.00016938]
[1766157909142,0.00016938,88563.0,88545.0,0.0112986]
[1766157909344,0.011293,88590.0,88538.0,0.00016938]
[1766157909642,0.0112934,88587.0,88552.0,0.0112978]
[1766157909842,0.0112933,88588.0,88555.0,0.0112973]
[1766157910043,0.09041958,88618.0,88553.0,0.00484]
[1766157910339,0.0112901,88613.0,88577.0,0.0112946]
[1766157910529,0.00016938,88593.0,88577.0,0.0112946]
[1766157910728,0.00016938,88593.0,88576.0,0.0112947]
[1766157910936,0.00016938,88593.0,88575.0,0.00016938]
[1766157911235,8e-08,88593.0,88583.0,0.0112938]
[1766157911436,8e-08,88593.0,88575.0,0.00016938]
[1766157911636,8e-08,88593.0,88542.0,0.011299]
[1766157911841,0.0112928,88592.0,88556.0,0.0112972]
[1766157912138,1.44096,88595.0,88541.0,0.00344]
[1766157912343,1.44096,88595.0,88542.0,0.00344]
[1766157912537,0.0112949,88576.0,88542.0,0.014739]
[1766157912738,0.00016938,88568.0,88550.0,0.00016938]
[1766157913340,0.0112973,88557.0,88550.0,8e-08]
[1766157913549,0.0112981,88550.0,88516.0,1.44092]
[1766157913748,0.0112981,88550.0,88509.0,0.006]
[1766157914043,1.44092,88551.0,88491.0,1.44092]
[1766157914340,0.0112983,88549.0,88494.0,0.0113051]
[1766157914541,0.00016938,88530.0,88513.0,0.00016938]
[1766157914748,0.006,88529.0,88513.0,0.00016938]
[1766157914937,8e-08,88530.0,88513.0,0.00016938]
[1766157915435,0.01130088,88530.0,88487.0,1.44096]
[1766157915637,0.0113014,88524.0,88490.0,0.0113056]
[1766157915842,0.0113019,88520.0,88487.0,0.011306]
[1766157916141,0.0113019,88520.0,88487.0,0.016146]
[1766157916350,0.0113013,88525.0,88495.0,0.00016948]
[1766157916541,0.0024,88529.0,88495.0,8e-08]
[1766157916741,0.0024,88529.0,88446.0,0.05912796]
[1766157916742,0.0113056,88491.0,88456.0,0.0113101]
[1766157916943,0.00484,88490.0,88453.0,0.0113104]
[1766157917145,0.00484,88490.0,88444.0,0.00484]
[1766157917346,0.006,88497.0,88479.0,0.0113072]
[1766157917642,0.0001391,88496.0,88468.0,0.006]
[1766157917851,0.0001391,88496.0,88469.0,0.00256]
[1766157918147,0.0001391,88496.0,88460.0,0.0113095]
[1766157918345,0.00016948,88487.0,88455.0,0.0113101]
[1766157918532,0.00016948,88487.0,88456.0,0.00484]
[1766157918847,0.00016948,88487.0,88457.0,0.0113099]
[1766157919246,0.00016948,88487.0,88452.0,0.0133905]
[1766157919447,0.00012355,88486.0,88451.0,0.00572]
[1766157919643,0.00012355,88486.0,88461.0,0.0113094]
[1766157919950,0.00012355,88486.0,88468.0,0.0113085]
[1766157920150,0.00012355,88486.0,88452.0,0.00244]
[1766157920445,3.55e-06,88486.0,88452.0,0.00244]
[1766157920751,3.55e-06,88486.0,88460.0,0.0113095]
[1766157920950,3.55e-06,88486.0,88466.0,0.0113087]
[1766157921134,3.55e-06,88486.0,88476.0,0.0113075]
[1766157921338,0.09170159,88539.0,88469.0,0.0056]
[1766157921534,1.4527781,88550.0,88497.0,0.0113048]
[1766157921751,0.006,88549.0,88498.0,0.0012]
[1766157921939,0.006,88549.0,88472.0,0.0113079]
[1766157921940,0.0113015,88524.0,88463.0,0.10328015]
[1766157922140,1.44156,88523.0,88467.0,0.0565433]
[1766157922340,0.00016948,88504.0,88486.0,0.00016948]
[1766157922541,5.248e-05,88503.0,88468.0,0.0113085]
[1766157922736,5.248e-05,88503.0,88472.0,0.011308]
[1766157922941,0.006,88523.0,88507.0,0.0113036]
[1766157923145,0.85139774,88560.0,88501.0,0.0113043]
[1766157923146,0.006,88534.0,88501.0,0.0113043]
[1766157923346,0.006,88534.0,88467.0,0.0113086]
[1766157923548,0.00016948,88509.0,88492.0,0.00016948]
[1766157923746,0.00016948,88509.0,88493.0,0.00468]
[1766157923942,0.006,88534.0,88497.0,0.0113048]
[1766157924251,0.011302,88520.0,88492.0,0.00016948]
[1766157924452,0.0113007,88530.0,88496.0,0.011305]
[1766157924951,0.00016948,88522.0,88493.0,0.0048]
[1766157925640,0.00016948,88522.0,88475.0,0.0113076]
[1766157925950,0.0113019,88520.0,88467.0,0.0113086]
[1766157926149,1.44408,88519.0,88472.0,0.0113079]
[1766157926350,0.0113036,88507.0,88472.0,0.0113079]
[1766157926552,0.0113038,88505.0,88472.0,0.0113079]
[1766157926846,0.00016948,88497.0,88480.0,0.00016948]
[1766157927148,1.44164,88519.0,88481.0,0.00412]
[1766157927351,0.006,88524.0,88494.0,0.0113051]
[1766157927548,0.0113014,88524.0,88490.0,0.0113057]
[1766157927746,0.0113023,88518.0,88486.0,0.0113062]
[1766157927945,0.011303,88512.0,88449.0,0.02956994]
[1766157928145,0.00016948,88493.0,88479.0,0.0113071]
[1766157928343,0.0024,88511.0,88477.0,0.006]
[1766157928850,0.0113035,88508.0,88477.0,0.0113073]
[1766157929053,0.0113034,88509.0,88478.0,0.0026]
[1766157929348,8e-08,88502.0,88478.0,0.0026]
[1766157929741,8e-08,88502.0,88494.0,0.0113052]
[1766157929948,8e-08,88502.0,88476.0,0.00016948]
[1766157930145,8e-08,88502.0,88488.0,0.011306]
[1766157930351,8e-08,88502.0,88490.0,0.0113057]
[1766157930650,0.0112987,88546.0,88483.0,0.0056]
[1766157930651,0.0112994,88540.0,88511.0,0.011303]
[1766157930950,1.4530996,88538.0,88510.0,0.0113032]
[1766157931151,0.0112996,88538.0,88510.0,0.0113032]
[1766157931338,0.0113009,88528.0,88502.0,0.006]
[1766157931544,0.00016948,88524.0,88469.0,0.04087834]
[1766157931852,0.0113032,88510.0,88483.0,0.0113066]
[1766157932041,0.0113019,88521.0,88478.0,0.0113073]
[1766157932348,0.0113018,88521.0,88474.0,0.0113078]
[1766157932648,1.4418,88522.0,88489.0,0.01147538]
[1766157932840,1.4418,88522.0,88495.0,0.0113051]
[1766157933039,0.0048,88523.0,88489.0,0.00496948]
[1766157933239,0.0113017,88522.0,88493.0,0.0113053]
[1766157933453,0.0113037,88507.0,88489.0,0.00016948]
[1766157933649,0.0113047,88498.0,88489.0,0.00016948]
[1766157933955,0.0113043,88502.0,88475.0,0.0113076]
[1766157934151,0.0113043,88502.0,88441.0,0.03958963]
[1766157934152,0.00536,88509.0,88470.0,0.0048]
[1766157934357,0.00536,88509.0,88483.0,0.0113066]
[1766157934545,0.00536,88509.0,88484.0,0.0113064]
[1766157934848,0.00016948,88505.0,88488.0,0.00016948]
[1766157935444,0.00016948,88505.0,88472.0,0.0113079]
[1766157935445,0.0113044,88501.0,88472.0,0.0113079]
[1766157935640,0.0113045,88500.0,88473.0,0.0048]
[1766157935839,0.00536,88509.0,88471.0,0.0113081]
[1766157936042,0.00536,88509.0,88467.0,0.006]
[1766157936343,0.0113044,88501.0,88470.0,0.0113083]
[1766157936542,0.00016948,88494.0,88477.0,0.00016948]
[1766157937159,0.00016948,88494.0,88442.0,0.00010684]
[1766157937340,0.0113088,88467.0,88442.0,0.00010684]
[1766157937543,0.0034,88469.0,88442.0,0.00010684]
[1766157937744,0.0113091,88464.0,88442.0,0.00010684]
[1766157937945,0.0034,88469.0,88403.0,0.02956994]
[1766157938141,0.0113109,88450.0,88419.0,0.0113147]
[1766157938356,0.00016958,88445.0,88427.0,0.00016958]
[1766157938957,0.00010684,88444.0,88427.0,0.00016958]
[1766157939254,0.0113122,88440.0,88408.0,0.0113162]
[1766157939453,0.00010684,88444.0,88411.0,0.006]
[1766157939952,0.00010684,88444.0,88402.0,0.011317]
[1766157940152,0.00010684,88444.0,88370.0,0.011321]
[1766157940153,0.00010684,88444.0,88390.0,0.0113185]
[1766157940358,0.00016958,88432.0,88392.0,0.0113182]
[1766157940546,0.0113138,88428.0,88393.0,0.0113181]
[1766157940746,7.97e-05,88431.0,88411.0,0.0113158]
[1766157941051,7.97e-05,88431.0,88390.0,1.44216]
[1766157941255,0.00244,88430.0,88402.0,0.011317]
[1766157941447,0.00244,88430.0,88403.0,0.0113168]
[1766157941757,1.4422,88429.0,88357.0,0.02956994]
[1766157941948,1.4422,88429.0,88354.0,0.0113231]
[1766157941949,1.4422,88429.0,88379.0,0.0113199]
[1766157942148,0.0113159,88411.0,88375.0,0.0113204]
[1766157942347,0.00016969,88406.0,88372.0,0.00244]
[1766157942546,0.0113173,88400.0,88359.0,0.0113224]
[1766157942753,0.00016969,88388.0,88360.0,1.44472]
[1766157942956,0.00016969,88388.0,88357.0,0.0113226]
[1766157943158,0.0113184,88391.0,88334.0,0.0113257]
[1766157943356,0.0024,88392.0,88337.0,0.0113253]
[1766157943654,0.00052,88399.0,88346.0,0.12650502]
[1766157943848,0.00052,88399.0,88369.0,0.0113212]
[1766157944043,0.00010027,88398.0,88375.0,0.0113205]
[1766157944350,0.0113178,88396.0,88378.0,0.00016969]
[1766157944552,0.00010027,88398.0,88357.0,1.44252]
[1766157944746,0.00010027,88398.0,88358.0,1.44852]
[1766157944941,0.00010027,88398.0,88374.0,0.0113205]
[1766157945148,1.44268,88424.0,88394.0,0.011318]
[1766157945348,0.70503295,88430.0,88401.0,0.011317]
[1766157945349,0.00016969,88418.0,88401.0,0.011317]
[1766157945654,0.00016969,88418.0,88400.0,0.00016969]
[1766157946154,0.00011584,88417.0,88400.0,0.00016969]
[1766157946543,0.0113153,88416.0,88400.0,0.00016969]
[1766157946747,0.00011584,88417.0,88400.0,0.00016969]
[1766157947357,0.00011584,88417.0,88349.0,0.0296774]
[1766157947358,0.70503295,88410.0,88351.0,0.0566179]
[1766157947548,0.00436,88411.0,88354.0,0.0113231]
[1766157947743,0.00436,88411.0,88382.0,0.0113196]
[1766157948145,0.00436,88411.0,88381.0,0.006]
[1766157948451,0.00011584,88417.0,88387.0,0.00016969]
[1766157948657,1.4541929,88435.0,88402.0,0.011317]
[1766157948857,0.0113131,88433.0,88402.0,0.011317]
[1766157949058,0.006,88434.0,88383.0,0.0113193]
[1766157949260,0.0113143,88423.0,88390.0,0.0113185]
[1766157949460,0.32032727,88410.0,88398.0,0.00016969]
[1766157949648,0.32032727,88408.0,88376.0,0.0113203]
[1766157949853,0.32032727,88400.0,88379.0,0.0113198]
[1766157950255,0.32032727,88400.0,88370.0,0.0048]
[1766157950259,0.32032727,88390.0,88362.0,0.12719423]
[1766157950463,0.32032727,88390.0,88352.0,0.0113233]
[1766157950464,0.32032727,88390.0,88369.0,0.0113212]
[1766157950763,0.32032727,88390.0,88371.0,0.00016969]
[1766157950764,0.00016969,88388.0,88371.0,0.00016969]
[1766157950961,0.32032727,88381.0,88371.0,0.00016969]
[1766157951164,0.00016969,88388.0,88371.0,0.00016969]
[1766157952154,0.00016969,88388.0,88337.0,0.0113252]
[1766157952354,0.32060158,88370.0,88325.0,0.09014874]
[1766157952665,0.32060158,88350.0,88332.0,0.12828003]
[1766157952867,0.32060158,88350.0,88328.0,0.0113264]
[1766157953160,0.0001698,88348.0,88326.0,0.006]
[1766157953762,0.0001698,88348.0,88317.0,0.00252]
[1766157953763,0.0113245,88344.0,88317.0,0.00252]
[1766157953961,0.00484,88343.0,88327.0,0.0113266]
[1766157954265,0.0113213,88369.0,88326.0,0.0001698]
[1766157954577,0.00244,88368.0,88338.0,0.0113251]
[1766157954756,0.00244,88368.0,88344.0,0.0113244]
[1766157955063,0.00104,88376.0,88339.0,0.006]
[1766157955360,0.011318,88395.0,88358.0,0.0113226]
[1766157955567,0.0113182,88393.0,88358.0,0.0113226]
[1766157955865,0.0113192,88385.0,88356.0,0.00044]
[1766157956162,0.0001698,88379.0,88362.0,0.0001698]
[1766157956751,0.0114899,88379.0,88362.0,0.0001698]
[1766157956952,0.0114899,88379.0,88328.0,0.0113265]
[1766157956953,0.0001698,88379.0,88351.0,0.0113235]
[1766157957159,0.0113193,88384.0,88351.0,0.0113235]
[1766157957358,0.0113204,88376.0,88347.0,0.00476]
[1766157957559,0.0113208,88373.0,88341.0,0.0113248]
[1766157957758,0.00476,88372.0,88352.0,0.0113234]
[1766157957965,0.002,88378.0,88355.0,0.011323]
[1766157958158,0.002,88378.0,88353.0,0.0001698]
[1766157958554,0.0113209,88372.0,88339.0,0.011325]
[1766157958759,0.0113203,88377.0,88343.0,0.0113245]
[1766157958961,0.0113209,88372.0,88341.0,0.0113248]
[1766157959163,0.002,88378.0,88325.0,0.00476]
[1766157959358,0.0113204,88376.0,88327.0,0.0113265]
[1766157959556,0.0001698,88360.0,88327.0,0.0113265]
[1766157959770,0.0001698,88360.0,88349.0,0.0113238]
[1766157960070,0.00484,88375.0,88343.0,0.0113245]
[1766157960371,0.00484,88375.0,88346.0,0.0113241]
[1766157960575,0.00484,88375.0,88340.0,0.00476]
[1766157960576,0.00484,88375.0,88350.0,0.0113236]
[1766157960774,0.00484,88375.0,88351.0,0.0113235]
[1766157961071,0.0001698,88372.0,88354.0,0.0001698]
[1766157961262,0.0001698,88372.0,88355.0,0.011323]
[1766157961466,0.00176,88388.0,88364.0,0.0113218]
[1766157961768,0.00076,88388.0,88357.0,0.0113227]
[1766157961966,0.00076,88388.0,88354.0,0.004]
[1766157961967,0.0113199,88380.0,88354.0,0.00176]
[1766157962158,0.0113203,88377.0,88354.0,0.00176]
[1766157962363,0.0001698,88374.0,88357.0,0.0001698]
[1766157963070,0.0001698,88374.0,88358.0,0.0113226]
[1766157963367,0.0113178,88396.0,88364.0,0.0113218]
[1766157963573,0.006,88387.0,88359.0,0.0113224]
[1766157963870,0.006,88387.0,88356.0,0.00568]
[1766157964166,0.00252,88401.0,88358.0,0.0113226]
[1766157964371,0.0001697,88388.0,88371.0,0.0001697]
[1766157964566,0.01095873,88422.0,88371.0,0.0001697]
[1766157964765,1.44384,88424.0,88371.0,0.0001697]
[1766157964766,0.70574892,88410.0,88371.0,0.0001697]
[1766157965074,0.0113167,88405.0,88371.0,0.0001697]
[1766157965271,0.0113169,88403.0,88374.0,0.0113205]
[1766157965475,0.0113172,88401.0,88371.0,0.0001697]
[1766157965671,0.0001697,88396.0,88373.0,0.0113207]
[1766157966070,0.0001697,88396.0,88372.0,0.0113208]
[1766157966269,0.0001697,88396.0,88371.0,0.0001697]
[1766157966470,0.0001697,88396.0,88372.0,0.0113208]
[1766157966673,0.0001697,88396.0,88371.0,0.0001697]
[1766157966870,0.0001697,88396.0,88374.0,0.0113205]
[1766157967071,0.011318,88395.0,88371.0,0.0001697]
[1766157967274,0.0113184,88391.0,88371.0,0.0001697]
[1766157967676,0.0113179,88395.0,88371.0,0.0001697]
[1766157967863,0.0001697,88396.0,88371.0,0.0001697]
[1766157968173,0.0001697,88396.0,88338.0,0.02965238]
[1766157968374,0.0113188,88389.0,88337.0,1.44384]
[1766157968581,0.0113203,88377.0,88338.0,0.006]
[1766157968767,0.006,88376.0,88347.0,0.0113239]
[1766157969076,0.006,88375.0,88344.0,0.0113243]
[1766157969281,0.0001697,88368.0,88351.0,0.0001697]
[1766157969973,0.12958076,88435.0,88355.0,0.011323]
[1766157969974,0.0113192,88386.0,88355.0,0.011323]
[1766157970174,0.006,88385.0,88355.0,0.00304]
[1766157970473,0.017319,88387.0,88355.0,0.014363]
[1766157970677,0.006,88387.0,88355.0,0.00304]
[1766157970879,0.0001697,88380.0,88362.0,0.0001697]
[1766157971271,0.0001697,88380.0,88363.0,0.011322]
[1766157971471,0.0113171,88402.0,88369.0,0.0113212]
[1766157971671,0.00476,88401.0,88372.0,0.0113208]
[1766157971972,0.006,88403.0,88379.0,0.0113199]
[1766157972172,0.006,88403.0,88370.0,0.00476]
[1766157972378,0.006,88403.0,88378.0,0.0114897]
[1766157972379,0.0001697,88395.0,88378.0,0.0114897]
[1766157972678,0.00216,88416.0,88387.0,0.0113188]
[1766157972975,0.006,88416.0,88377.0,0.006]
[1766157973182,0.0113169,88403.0,88375.0,0.006]
[1766157973380,0.0113177,88397.0,88369.0,0.00252]
[1766157973585,0.00476,88402.0,88374.0,0.0001697]
[1766157973586,0.00011174,88392.0,88374.0,0.0001697]
[1766157973877,1.74e-06,88392.0,88374.0,0.0001697]
[1766157974666,1.74e-06,88392.0,88357.0,0.0113227]
[1766157974865,0.00388,88391.0,88344.0,0.02965238]
[1766157975077,0.00388,88391.0,88345.0,0.006]
[1766157975377,0.0113214,88368.0,88339.0,0.011325]
[1766157975585,0.006,88368.0,88342.0,0.0113246]
[1766157975782,0.0001697,88364.0,88346.0,0.0001697]
[1766157975984,0.32067456,88360.0,88346.0,0.0001697]
[1766157976475,0.0113228,88357.0,88323.0,1.44384]
[1766157976678,0.32067456,88350.0,88323.0,1.4551671]
[1766157976877,0.11667621,88388.0,88323.0,1.4551671]
[1766157976878,0.006,88353.0,88329.0,0.0113263]
[1766157977177,0.00252,88353.0,88327.0,0.0113266]
[1766157977383,0.32067456,88340.0,88321.0,0.0113273]
[1766157977582,0.32067456,88331.0,88314.0,9.762e-05]
[1766157977887,0.0113264,88329.0,88314.0,9.762e-05]
[1766157978075,0.32067456,88330.0,88314.0,9.762e-05]
[1766157978582,0.32067456,88324.0,88284.0,0.06276004]
[1766157978781,0.32067456,88310.0,88282.0,0.006]
[1766157978976,0.32067456,88300.0,88283.0,0.00252]
[1766157979180,0.32067456,88300.0,88260.0,0.11339858]
[1766157979181,0.32067456,88300.0,88284.0,0.006]
[1766157979381,0.32067456,88300.0,88271.0,0.0113337]
[1766157979585,0.32067456,88290.0,88274.0,0.0113333]
[1766157979784,0.0001699,88292.0,88275.0,0.0001699]
[1766157979985,0.32067456,88290.0,88275.0,0.0001699]
[1766157980185,0.0001699,88292.0,88275.0,0.0001699]
[1766157980488,0.32067456,88290.0,88266.0,0.0113343]
[1766157980687,0.32067456,88290.0,88278.0,0.0113329]
[1766157980887,0.0001699,88292.0,88276.0,0.0113331]
[1766157981074,0.006,88297.0,88267.0,0.0113343]
[1766157981281,9.833e-05,88299.0,88295.0,0.0113307]
[1766157981586,0.32067456,88310.0,88286.0,0.0113318]
[1766157981774,0.0113283,88314.0,88282.0,0.0056]
[1766157981974,0.0113283,88314.0,88268.0,1.44428]
[1766157981975,0.00256,88316.0,88279.0,0.00232]
[1766157982179,0.0001699,88306.0,88295.0,0.0113306]
[1766157982387,0.0001699,88306.0,88291.0,0.0113312]
[1766157982583,0.0001699,88306.0,88293.0,0.0113309]
[1766157982889,0.0113274,88321.0,88289.0,0.0001699]
[1766157982890,0.0113262,88331.0,88300.0,0.01133]
[1766157983086,0.0113269,88325.0,88296.0,0.0113306]
[1766157983384,0.32067456,88320.0,88296.0,0.0113306]
[1766157983588,0.0113269,88325.0,88296.0,0.0113306]
[1766157983784,0.25923043,88439.0,88291.0,0.00568]
[1766157983785,0.011325,88340.0,88291.0,0.00568]
[1766157983986,0.006,88339.0,88317.0,0.0113278]
[1766157984184,0.0113246,88343.0,88317.0,0.0173278]
[1766157984379,0.006,88346.0,88317.0,0.0173278]
[1766157984790,0.32067456,88330.0,88309.0,0.006]
[1766157985093,0.0001699,88328.0,88307.0,0.0061699]
[1766157985490,0.00048,88349.0,88323.0,0.011327]
[1766157985793,0.00048,88349.0,88320.0,0.00256]
[1766157986089,0.0113261,88332.0,88300.0,0.01133]
[1766157986289,0.32067456,88330.0,88302.0,0.0113297]
[1766157986485,0.0001699,88325.0,88307.0,0.0001699]
[1766157988291,0.0113271,88324.0,88307.0,0.0001699]
[1766157988480,0.32067456,88320.0,88302.0,0.003]
[1766157988684,0.32067456,88320.0,88299.0,0.00524]
[1766157988885,0.0001699,88325.0,88306.0,0.0113293]
[1766157989202,0.0001699,88325.0,88299.0,0.0165702]
[1766157989382,0.0001699,88325.0,88306.0,0.0113293]
[1766157989582,0.32067456,88316.0,88255.0,1.44464]
[1766157989791,0.32067456,88300.0,88270.0,0.0113338]
[1766157990089,0.32067456,88290.0,88266.0,0.0113344]
[1766157990294,0.0113318,88287.0,88258.0,0.0113354]
[1766157990594,0.0113318,88287.0,88252.0,0.05]
[1766157990595,0.0001699,88281.0,88264.0,0.0001699]
[1766157991289,0.0001699,88281.0,88264.0,0.0115045]
[1766157991493,0.0001699,88281.0,88268.0,0.0113342]
[1766157991680,0.0001699,88281.0,88264.0,0.0001699]
[1766157991681,0.0001699,88281.0,88271.0,0.0113338]